fUST/lending_fUST_20250312
["ID","MTS","AMOUNT","RATE_DAILY","PERIOD"]
[355974367,1741750661890,-151.0,0.0001631,2]
[355974368,1741750661913,-151.0,0.0001631,2]
[355974369,1741750661938,-151.0,0.0001631,2]
[355974370,1741750661962,-158.796357,0.0001631,2]
[355974371,1741750661985,-463.181202,0.0001631,2]
[355974372,1741750662009,-463.181202,0.0001631,2]
[355974373,1741750662034,-463.181202,0.0001631,2]
[355974374,1741750662057,-463.181202,0.0001631,2]
[355974375,1741750662080,-463.181202,0.0001631,2]
[355974376,1741750662103,-463.181202,0.0001631,2]
[355974377,1741750662128,-151.0,0.0001631,2]
[355974378,1741750662154,-151.0,0.0001631,2]
[355974379,1741750662178,-151.0,0.0001631,2]
[355974380,1741750662202,-151.0,0.00016311,2]
[355974381,1741750662225,-151.0,0.00016311,2]
[355974382,1741750662248,-50.9099469,0.00016311,2]
[355974383,1741750671938,-151.0,0.00016309,2]
[355974384,1741750671961,-151.0,0.00016309,2]
[355974385,1741750671987,-151.0,0.00016309,2]
[355974386,1741750672011,-151.0,0.00016309,2]
[355974387,1741750672034,-151.0,0.00016309,2]
[355974388,1741750672057,-151.0,0.00016309,2]
[355974389,1741750672080,-211.87545,0.0001631,2]
[355974390,1741750672103,-100.0900531,0.00016311,2]
[355974391,1741750672125,-159.172271,0.00016311,2]
[355974392,1741750672149,-163.095784,0.00016311,2]
[355974393,1741750672172,-163.095784,0.00016311,2]
[355974394,1741750672196,-163.095784,0.00016311,2]
[355974395,1741750672219,-163.095784,0.00016311,2]
[355974396,1741750672242,-163.095784,0.00016311,2]
[355974397,1741750672266,-163.095789,0.00016311,2]
[355974398,1741750672288,-151.0,0.00016311,2]
[355974399,1741750672312,-151.0,0.00016311,2]
[355974400,1741750672336,-151.0,0.00016311,2]
[355974401,1741750672359,-151.0,0.00016311,2]
[355974402,1741750672382,-151.0,0.00016311,2]
[355974403,1741750672405,-151.0,0.00016311,2]
[355974404,1741750672428,-172.90466,0.00016311,2]
[355974405,1741750672451,-172.90466,0.00016311,2]
[355974406,1741750672474,-172.90466,0.00016311,2]
[355974407,1741750672671,-172.90466,0.00016311,2]
[355974408,1741750672695,-172.90466,0.00016311,2]
[355974409,1741750672719,-172.90466,0.00016311,2]
[355974410,1741750672743,-673.235031,0.00016311,2]
[355974411,1741750672767,-673.235031,0.00016311,2]
[355974412,1741750672790,-673.235031,0.00016311,2]
[355974413,1741750672813,-673.235031,0.00016311,2]
[355974414,1741750672836,-673.235031,0.00016311,2]
[355974415,1741750672860,-673.235031,0.00016311,2]
[355974416,1741750672887,-151.0,0.00016311,2]
[355974417,1741750672910,-151.0,0.00016311,2]
[355974418,1741750672934,-151.0,0.00016311,2]
[355974419,1741750672957,-390.717032,0.00016311,2]
[355974420,1741750672982,-390.717032,0.00016311,2]
[355974421,1741750673004,-390.717032,0.00016311,2]
[355974422,1741750673028,-151.0,0.00016311,2]
[355974423,1741750673050,-151.0,0.00016311,2]
[355974424,1741750673073,-151.0,0.00016311,2]
[355974425,1741750673097,-151.0,0.00016311,2]
[355974426,1741750673119,-151.0,0.00016311,2]
[355974427,1741750673143,-151.0,0.00016311,2]
[355974428,1741750673166,-151.0,0.00016311,2]
[355974429,1741750673190,-151.0,0.00016311,2]
[355974430,1741750673212,-239.783247,0.00016311,2]
[355974431,1741750673236,-266.614588,0.00016311,2]
[355974432,1741750673259,-151.0,0.00016311,2]
[355974433,1741750673283,-151.0,0.00016311,2]
[355974434,1741750673306,-463.181202,0.00016311,2]
[355974435,1741750673330,-463.181202,0.00016311,2]
[355974436,1741750673354,-463.181202,0.00016311,2]
[355974437,1741750673378,-463.181202,0.00016311,2]
[355974438,1741750673401,-151.0,0.00016311,2]
[355974439,1741750673425,-151.0,0.00016311,2]
[355974440,1741750673447,-151.0,0.00016311,2]
[355974441,1741750673471,-176.153265,0.00016312,2]
[355974442,1741750673494,-151.0,0.00016313,2]
[355974443,1741750673516,-151.0,0.00016313,2]
[355974444,1741750673539,-151.0,0.00016313,2]
[355974445,1741750673562,-245.586364,0.00016313,2]
[355974446,1741750673585,-330.794762,0.00016313,2]
[355974447,1741750673608,-330.794762,0.00016313,2]
[355974448,1741750673631,-330.794762,0.00016313,2]
[355974449,1741750673656,-330.794762,0.00016313,2]
[355974450,1741750673680,-330.794762,0.00016313,2]
[355974451,1741750673703,-330.794762,0.00016313,2]
[355974452,1741750673727,-330.794762,0.00016313,2]
[355974453,1741750673751,-330.794762,0.00016313,2]
[355974454,1741750673774,-330.794762,0.00016313,2]
[355974455,1741750673799,-330.794762,0.00016313,2]
[355974456,1741750673823,-330.794762,0.00016313,2]
[355974457,1741750673846,-330.794762,0.00016313,2]
[355974458,1741750673870,-330.794762,0.00016313,2]
[355974459,1741750673897,-330.794762,0.00016313,2]
[355974460,1741750673921,-208.3093349,0.00016313,2]
[355974461,1741750704323,-827.12514066,0.00016256,2]
[355974462,1741750704348,-151.0,0.0001631,2]
[355974463,1741750704371,-151.0,0.0001631,2]
[355974464,1741750704395,-151.0,0.0001631,2]
[355974465,1741750704419,-151.0,0.00016311,2]
[355974466,1741750704443,-271.309252,0.00016311,2]
[355974467,1741750704468,-300.0,0.00016312,2]
[355974468,1741750704492,-122.4854271,0.00016313,2]
[355974469,1741750704515,-330.794762,0.00016313,2]
[355974470,1741750704539,-330.794762,0.00016313,2]
[355974471,1741750704562,-330.794762,0.00016313,2]
[355974472,1741750704585,-330.794762,0.00016313,2]
[355974473,1741750704611,-330.794766,0.00016313,2]
[355974474,1741750704633,-151.0,0.00016313,2]
[355974475,1741750704657,-151.0,0.00016313,2]
[355974476,1741750704680,-154.210134,0.00016313,2]
[355974477,1741750704706,-172.90466,0.00016313,2]
[355974478,1741750704730,-172.90466,0.00016313,2]
[355974479,1741750704754,-172.90466,0.00016313,2]
[355974480,1741750704777,-172.90466,0.00016313,2]
[355974481,1741750704802,-673.235031,0.00016313,2]
[355974482,1741750704825,-673.235031,0.00016313,2]
[355974483,1741750704849,-673.235031,0.00016313,2]
[355974484,1741750704872,-673.235031,0.00016313,2]
[355974485,1741750704900,-151.0,0.00016313,2]
[355974486,1741750704926,-239.870168,0.00016313,2]
[355974487,1741750704953,-151.0,0.00016313,2]
[355974488,1741750704977,-151.0,0.00016313,2]
[355974489,1741750705001,-151.0,0.00016313,2]
[355974490,1741750705025,-151.0,0.00016313,2]
[355974491,1741750705051,-151.0,0.00016313,2]
[355974492,1741750705075,-151.0,0.00016313,2]
[355974493,1741750705099,-151.0,0.00016313,2]
[355974494,1741750705123,-151.0,0.00016313,2]
[355974495,1741750705340,-463.181202,0.00016313,2]
[355974496,1741750705370,-463.181202,0.00016313,2]
[355974497,1741750705395,-463.181202,0.00016313,2]
[355974498,1741750705420,-463.181202,0.00016313,2]
[355974499,1741750705444,-253.96607,0.00016313,2]
[355974500,1741750705470,-253.96607,0.00016313,2]
[355974501,1741750705494,-170.520596,0.00016314,2]
[355974502,1741750705518,-170.520596,0.00016314,2]
[355974503,1741750705543,-170.520596,0.00016314,2]
[355974504,1741750705567,-170.520596,0.00016314,2]
[355974505,1741750705591,-170.520596,0.00016314,2]
[355974506,1741750705615,-170.520596,0.00016314,2]
[355974507,1741750705639,-170.520596,0.00016314,2]
[355974508,1741750705663,-170.520596,0.00016314,2]
[355974509,1741750705687,-170.520596,0.00016314,2]
[355974510,1741750705722,-170.520596,0.00016314,2]
[355974511,1741750705752,-170.520596,0.00016314,2]
[355974512,1741750705778,-170.520596,0.00016314,2]
[355974513,1741750705805,-170.520596,0.00016314,2]
[355974514,1741750705831,-170.520596,0.00016314,2]
[355974515,1741750705856,-170.520596,0.00016314,2]
[355974516,1741750705882,-170.520596,0.00016314,2]
[355974517,1741750705910,-170.520596,0.00016314,2]
[355974518,1741750705935,-170.520596,0.00016314,2]
[355974519,1741750705963,-170.520596,0.00016314,2]
[355974520,1741750705991,-170.52059258,0.00016314,2]
[355974521,1741750706016,-151.0,0.00016314,2]
[355974522,1741750706041,-151.0,0.00016314,2]
[355974523,1741750706066,-151.0,0.00016314,2]
[355974524,1741750706090,-151.0,0.00016314,2]
[355974525,1741750706114,-151.0,0.00016314,2]
[355974526,1741750706139,-206.91925253,0.00016314,2]
[355974527,1741750706165,-463.181202,0.00016314,2]
[355974528,1741750706190,-463.181202,0.00016314,2]
[355974529,1741750706214,-152.253545,0.00016315,2]
[355974530,1741750706239,-172.90466,0.00016315,2]
[355974531,1741750706263,-172.90466,0.00016315,2]
[355974532,1741750706287,-172.90466,0.00016315,2]
[355974533,1741750706312,-172.90466,0.00016315,2]
[355974534,1741750706336,-172.90466,0.00016315,2]
[355974535,1741750706361,-172.90466,0.00016315,2]
[355974536,1741750706384,-673.235031,0.00016315,2]
[355974537,1741750706408,-673.235031,0.00016315,2]
[355974538,1741750706432,-585.96521213,0.00016315,2]
[355974539,1741750746907,-834.61949744,0.00016129,2]
[355974540,1741750746935,-300.0,0.00016314,2]
[355974541,1741750746961,-87.26981887,0.00016315,2]
[355974542,1741750746987,-673.235031,0.00016315,2]
[355974543,1741750747012,-673.235031,0.00016315,2]
[355974544,1741750747036,-673.235031,0.00016315,2]
[355974545,1741750747061,-151.0,0.00016315,2]
[355974546,1741750747086,-195.100394,0.00016315,2]
[355974547,1741750747109,-151.0,0.00016315,2]
[355974548,1741750747133,-151.0,0.00016315,2]
[355974549,1741750747156,-151.0,0.00016315,2]
[355974550,1741750747179,-228.722181,0.00016315,2]
[355974551,1741750747203,-151.0,0.00016315,2]
[355974552,1741750747228,-151.0,0.00016315,2]
[355974553,1741750747252,-151.0,0.00016315,2]
[355974554,1741750747277,-463.181202,0.00016315,2]
[355974555,1741750747305,-463.181204,0.00016315,2]
[355974556,1741750747333,-253.96607,0.00016315,2]
[355974557,1741750747358,-253.96607,0.00016315,2]
[355974558,1741750747382,-151.0,0.00016317,2]
[355974559,1741750747405,-151.0,0.00016317,2]
[355974560,1741750747430,-151.0,0.00016317,2]
[355974561,1741750747454,-151.0,0.00016317,2]
[355974562,1741750747479,-151.0,0.00016317,2]
[355974563,1741750747503,-151.0,0.00016317,2]
[355974564,1741750747527,-151.0,0.00016317,2]
[355974565,1741750747551,-151.0,0.00016317,2]
[355974566,1741750747575,-151.0,0.00016317,2]
[355974567,1741750747600,-151.0,0.00016317,2]
[355974568,1741750747624,-151.0,0.00016317,2]
[355974569,1741750747650,-151.0,0.00016317,2]
[355974570,1741750747675,-151.0,0.00016317,2]
[355974571,1741750747701,-151.0,0.00016317,2]
[355974572,1741750747726,-281.633038,0.00016317,2]
[355974573,1741750747751,-172.90466,0.00016318,2]
[355974574,1741750747777,-172.904654,0.00016318,2]
[355974575,1741750747802,-673.235031,0.00016318,2]
[355974576,1741750747827,-673.235034,0.00016318,2]
[355974577,1741750747853,-165.38903108,0.00016326,2]
[355974578,1741750747879,-622.2,0.00016356,2]
[355974579,1741750747904,-253.96607,0.00016356,2]
[355974580,1741750747930,-253.96607,0.00016356,2]
[355974581,1741750747956,-500.0,0.00016373,2]
[355974582,1741750747981,-500.0,0.00016373,2]
[355974583,1741750748006,-500.0,0.00016373,2]
[355974584,1741750748030,-500.0,0.00016373,2]
[355974585,1741750748054,-500.0,0.00016373,2]
[355974586,1741750748078,-510.09746935,0.00016373,2]
[355974587,1741750748103,-500.0,0.00016373,2]
[355974588,1741750748128,-504.41435333,0.00016373,2]
[355974589,1741750748152,-500.0,0.00016373,2]
[355974590,1741750748176,-217.78977503,0.00016373,2]
[355974591,1741750748200,-500.0,0.00016373,2]
[355974592,1741750748224,-500.0,0.00016373,2]
[355974593,1741750748248,-500.0,0.00016373,2]
[355974594,1741750748289,-723.32863255,0.000164,2]
[355974595,1741750748330,-645.2214,0.00016411,2]
[355974596,1741750748371,-500.0,0.00016437,2]
[355974597,1741750748395,-253.96607,0.00016438,2]
[355974598,1741750748420,-105.03718135,0.00016438,2]
[355974599,1741750773554,-151.0,0.00016437,2]
[355974600,1741750773581,-148.92888865,0.00016438,2]
[355974601,1741750773608,-151.0,0.00016438,2]
[355974602,1741750773634,-151.0,0.00016438,2]
[355974603,1741750773660,-164.199488,0.00016438,2]
[355974604,1741750773684,-151.0,0.00016438,2]
[355974605,1741750773710,-151.0,0.00016438,2]
[355974606,1741750773735,-151.0,0.00016438,2]
[355974607,1741750773760,-151.0,0.00016438,2]
[355974608,1741750773788,-151.0,0.00016438,2]
[355974609,1741750773814,-151.0,0.00016438,2]
[355974610,1741750773839,-151.0,0.00016438,2]
[355974611,1741750773866,-223.123095,0.00016438,2]
[355974612,1741750773891,-4608.3644958,0.00016438,2]
[355974613,1741750773916,-1000.0,0.00016438,7]
[355974614,1741750773944,-1000.0,0.00016438,7]
[355974615,1741750773974,-1000.0,0.00016438,7]
[355974616,1741750774000,-1000.0,0.00016438,7]
[355974617,1741750774025,-1000.0,0.00016438,7]
[355974618,1741750774050,-1000.0,0.00016438,7]
[355974619,1741750774075,-1000.0,0.00016438,7]
[355974620,1741750774100,-1000.0,0.00016438,7]
[355974621,1741750774125,-1000.0,0.00016438,7]
[355974622,1741750774148,-1000.0,0.00016438,7]
[355974623,1741750774174,-1000.0,0.00016438,7]
[355974624,1741750774198,-1000.0,0.00016438,7]
[355974625,1741750774222,-1000.0,0.00016438,7]
[355974626,1741750774246,-345.38403255,0.00016438,7]
[355974627,1741750799009,-151.0,0.00016437,2]
[355974628,1741750799034,-654.61596745,0.00016438,7]
[355974629,1741750799058,-1000.0,0.00016438,7]
[355974630,1741750799083,-1000.0,0.00016438,7]
[355974631,1741750799106,-1000.0,0.00016438,7]
[355974632,1741750799145,-1000.0,0.00016438,7]
[355974633,1741750799170,-1000.0,0.00016438,7]
[355974634,1741750799196,-1000.0,0.00016438,7]
[355974635,1741750799220,-1000.0,0.00016438,7]
[355974636,1741750799245,-1000.0,0.00016438,7]
[355974637,1741750799269,-1000.0,0.00016438,7]
[355974638,1741750799294,-1000.0,0.00016438,7]
[355974639,1741750799318,-1000.0,0.00016438,7]
[355974640,1741750799342,-1000.0,0.00016438,7]
[355974641,1741750799366,-1000.0,0.00016438,7]
[355974642,1741750799391,-1000.0,0.00016438,7]
[355974643,1741750799414,-1000.0,0.00016438,7]
[355974644,1741750799437,-1000.0,0.00016438,7]
[355974645,1741750799462,-1000.0,0.00016438,7]
[355974646,1741750799486,-1000.0,0.00016438,7]
[355974647,1741750799509,-1000.0,0.00016438,7]
[355974648,1741750799533,-194.38403255,0.00016438,7]
[355974649,1741750843894,239.71,0.00010959,2]
[355974650,1741750967207,719.17,0.00010959,2]
[355974651,1741751286341,422.0,0.00016022,2]
[355974678,1741751431967,-497.19086489,0.00016198,2]
[355974679,1741751431979,-834.36955489,0.00016198,2]
[355974694,1741751437932,-12056.09188581,0.00016198,2]
[355974695,1741751437945,-11512.34769441,0.00016198,2]
[355974696,1741751437955,-834.61949744,0.00016379,2]
[355974697,1741751437965,-151.0,0.00016437,2]
[355974698,1741751437974,-500.0,0.00016549,2]
[355974699,1741751437985,-500.0,0.0001655,2]
[355974700,1741751437995,-500.0,0.0001655,2]
[355974701,1741751438005,-151.0,0.00016576,2]
[355974702,1741751438014,-362.19133297,0.000166,2]
[355974703,1741751438026,-146.0777226,0.000166,2]
[355974704,1741751438036,-143.41408534,0.000166,2]
[355974705,1741751438048,-281.64330868,0.000166,2]
[355974761,1741751439967,-74.94260598,0.000166,2]
[355974763,1741751439977,-500.0,0.000166,2]
[355974765,1741751439990,-500.0,0.000166,2]
[355974767,1741751440001,-500.0,0.000166,2]
[355974769,1741751440011,-500.0,0.000166,2]
[355974771,1741751440022,-500.0,0.000166,2]
[355974773,1741751440032,-500.0,0.000166,2]
[355974775,1741751440042,-500.0,0.000166,2]
[355974777,1741751440051,-500.0,0.000166,2]
[355974779,1741751440061,-500.0,0.000166,2]
[355974781,1741751440070,-500.0,0.000166,2]
[355974783,1741751440079,-500.0,0.000166,2]
[355974785,1741751440089,-500.0,0.000166,2]
[355974787,1741751440098,-500.0,0.000166,2]
[355974789,1741751440108,-500.88808156,0.000166,2]
[355974791,1741751440118,-500.0,0.000167,2]
[355974793,1741751440128,-500.0,0.000167,2]
[355974795,1741751440137,-500.0,0.000167,2]
[355974797,1741751440147,-500.0,0.000167,2]
[355974799,1741751440158,-500.0,0.000167,2]
[355974801,1741751440170,-153.60973747,0.00016788,2]
[355974803,1741751440180,-310.7238952,0.000168,2]
[355974804,1741751440189,-167.8908949,0.000168,2]
[355974806,1741751440199,-167.8908949,0.000168,2]
[355974808,1741751440208,-167.8908949,0.000168,2]
[355974809,1741751440218,-167.8908949,0.000168,2]
[355974811,1741751440227,-167.8908949,0.000168,2]
[355974812,1741751440239,-500.0,0.000168,2]
[355974813,1741751440249,-167.8448478,0.000168,2]
[355974814,1741751440259,-167.8908949,0.000169,2]
[355974815,1741751440268,-167.8908949,0.000169,2]
[355974816,1741751440278,-167.8908949,0.000169,2]
[355974817,1741751440287,-167.8908949,0.000169,2]
[355974818,1741751440297,-6423.22277789,0.00017,2]
[355974819,1741751440309,-2881.27324279,0.00017,2]
[355974820,1741751440319,-151.0,0.00017,2]
[355974821,1741751440328,-167.8908949,0.00017,2]
[355974822,1741751440338,-167.8908949,0.00017,2]
[355974823,1741751440348,-167.8908949,0.00017,2]
[355974824,1741751440357,-150.0,0.00017033,3]
[355974825,1741751440367,-462.75156557,0.00017389,2]
[355974826,1741751440377,-701.12932447,0.00017844,2]
[355974827,1741751440386,-151.0,0.00017889,2]
[355974828,1741751440395,-476.49466592,0.00017889,2]
[355974829,1741751440407,-123.50533408,0.00017889,2]
[355974830,1741751440417,-294.61612836,0.00017899,2]
[355974831,1741751440427,-1988.78104007,0.000179,2]
[355974893,1741751440998,-7695.2028419,0.000179,2]
[355975239,1741751445372,-151.0,0.00016437,2]
[355975240,1741751445382,-349.26633292,0.00016811,2]
[355975241,1741751445393,-423.14995322,0.00016811,2]
[355975242,1741751445403,-3421.51907743,0.000179,2]
[355975243,1741751445414,-14214.17063929,0.000179,2]
[355975244,1741751445426,-80486.22438482,0.000179,2]
[355975245,1741751445437,-3474.85240186,0.000179,2]
[355975246,1741751445448,-4206.21136439,0.000179,2]
[355975249,1741751445916,-2379.218395,0.000179,2]
[355975250,1741751445972,-279.2328008,0.000179,2]
[355975261,1741751750699,511.2085103,0.00016022,2]
[355975262,1741751759529,5000.0,0.00016021,2]
[355975263,1741751774503,1189.15963517,0.00016021,2]
[355975265,1741751940768,5000.0,0.00016021,2]
[355975266,1741752434870,270.65,0.000176,30]
[355975267,1741752520493,5000.0,0.00016021,2]
[355975268,1741752536078,882.35769189,0.00016021,2]
[355975273,1741752545530,5000.0,0.00016021,2]
[355975424,1741752637959,-150.0,0.00016528,2]
[355975425,1741752637968,-279.99427152,0.00016695,2]
[355975426,1741752637980,-20.00572848,0.00016695,2]
[355975427,1741752637990,-1470.03591482,0.00016696,2]
[355975428,1741752638001,-279.58868455,0.00016696,2]
[355975843,1741752646330,-530.84390108,0.00016696,2]
[355975844,1741752646347,-13748.28409758,0.00016696,2]
[355975845,1741752823009,-500.0,0.00016164,2]
[355975848,1741753042930,673.440016,0.00015954,2]
[355975849,1741753087613,1984.2788317,0.00015673,2]
[355975850,1741753190805,200.0,0.00016,2]
[355975851,1741753486877,24900.0,0.00015639,2]
[355975853,1741753677886,3130.48180555,0.00016,2]
[355975854,1741753713334,277.82780074,0.0001,2]
[355975855,1741753719428,3544.41970301,9e-05,2]
[355975856,1741753744778,-4548.33567163,0.00016035,2]
[355975882,1741753832255,-3307.69036927,0.00016035,2]
[355975884,1741753832265,-3000.0,0.0001627,2]
[355975886,1741753832275,-772.41628614,0.00016363,2]
[355975888,1741753832284,-965.29226914,0.00016428,2]
[355975890,1741753832295,-1087.89682536,0.00016599,2]
[355975892,1741753832305,-300.0,0.00016689,2]
[355975894,1741753832314,-563.19812551,0.0001669,2]
[355975901,1741753832364,-2437.06187449,0.0001669,2]
[355975903,1741753832375,-170.24743234,0.00016698,2]
[355975905,1741753832385,-16183.25811846,0.00016699,2]
[355975907,1741753832395,-500.0,0.00016699,2]
[355975909,1741753832405,-500.0,0.00016699,2]
[355975911,1741753832414,-500.0,0.00016699,2]
[355975913,1741753832424,-500.0,0.00016699,2]
[355975915,1741753832434,-407.58794055,0.00016699,2]
[355975917,1741753832444,-429.648,0.00016699,2]
[355975918,1741753832454,-500.0,0.000167,2]
[355975920,1741753832463,-500.0,0.000167,2]
[355975922,1741753832473,-500.0,0.000167,2]
[355975924,1741753832483,-500.0,0.000167,2]
[355975926,1741753832492,-500.0,0.000167,2]
[355975928,1741753832502,-500.0,0.000167,2]
[355975930,1741753832511,-500.0,0.000167,2]
[355975931,1741753832526,-328.84369531,0.000167,2]
[355975933,1741753832538,-171.15630469,0.000167,2]
[355975935,1741753832548,-209.24894469,0.000167,2]
[355976064,1741753838125,-250.0,0.000167,2]
[355976065,1741753838181,-40.75105531,0.000167,2]
[355976066,1741753838191,-500.0,0.000167,2]
[355976067,1741753838202,-500.0,0.000167,2]
[355976068,1741753838212,-500.0,0.000167,2]
[355976069,1741753838222,-500.0,0.000167,2]
[355976070,1741753838232,-500.0,0.000167,2]
[355976071,1741753838241,-500.0,0.000167,2]
[355976072,1741753838251,-500.0,0.000167,2]
[355976073,1741753838261,-500.0,0.000167,2]
[355976074,1741753838271,-500.0,0.000167,2]
[355976075,1741753838281,-500.0,0.000167,2]
[355976076,1741753838291,-118.05330276,0.000167,2]
[355976145,1741753840492,-381.94669724,0.000167,2]
[355976148,1741753840503,-500.0,0.000167,2]
[355976150,1741753840513,-205.9834297,0.00016917,2]
[355976152,1741753840522,-765.77612758,0.000177,2]
[355976154,1741753840532,-239.26328083,0.00017747,2]
[355976156,1741753840542,-765.77612757,0.0001775,2]
[355976158,1741753840552,-206.23128986,0.00017772,2]
[355976160,1741753840562,-9258.40016323,0.00017772,5]
[355976162,1741753840571,-1642.10275256,0.00017772,5]
[355976164,1741753840581,-50046.08372312,0.00017773,2]
[355976166,1741753840592,-9204.20274741,0.00017773,2]
[355976168,1741753840603,-457.5,0.00017773,2]
[355976171,1741753840619,-582.04603108,0.00017773,2]
[355976175,1741753840650,-0.05761369,0.00017773,2]
[355976453,1741753843312,-376.86986144,0.00017773,2]
[355976459,1741753843373,-13579.90016454,0.00017773,2]
[355976460,1741753843385,-1699.10296557,0.00017773,2]
[355976461,1741753843397,-315.929,0.00017773,2]
[355976474,1741753846411,-605.42618668,0.00017773,2]
[355976475,1741753846424,-7427.13730559,0.00017773,2]
[355976476,1741753846447,-1288.26418683,0.00017773,2]
[355976480,1741754235717,1711.50551726,0.0001,2]
[355976486,1741754919329,9729.35,0.000176,30]
[355976487,1741754919357,270.65,0.000176,30]
[355976488,1741754943743,6375.55,0.000176,30]
[355976976,1741755038445,-213.9329815,0.00016589,2]
[355976977,1741755038455,-300.0,0.00016688,2]
[355976978,1741755038465,-970.43716012,0.00016689,2]
[355976979,1741755038478,-277.55688959,0.00016689,2]
[355977031,1741755043467,-361.55535767,0.00016689,2]
[355977043,1741755059126,1500.0,0.00016021,2]
[355977044,1741755118560,1074.83416514,5e-05,30]
[355977045,1741755466350,336.720008,0.00015774,2]
[355977048,1741755945231,24900.0,0.00015766,2]
[355977090,1741756232661,-219.3437133,0.00016185,2]
[355977092,1741756232672,-213.93298149,0.00016462,2]
[355977094,1741756232685,-335.9435847,0.00016562,2]
[355977096,1741756232694,-821.05137628,0.000166,5]
[355977098,1741756232703,-32156.10752131,0.000166,8]
[355977106,1741756232771,-17843.89247869,0.000166,8]
[355977108,1741756232780,-300.0,0.00016799,2]
[355977110,1741756232790,-42165.43352172,0.000168,8]
[355977637,1741756246855,-294.84347677,0.00016799,2]
[355977638,1741756246866,-300.021,0.00016799,2]
[355977639,1741756246876,-294.3619029,0.00016799,2]
[355977640,1741756246886,-3767.49389433,0.000168,8]
[355977641,1741756337064,168.26,0.00010959,2]
[355977642,1741756347574,841.31,0.00010959,2]
[355977643,1741756450335,504.79,0.00010959,2]
[355977644,1741756573899,252.39,0.00010959,2]
[355977646,1741756697298,757.2,0.00010959,2]
[355977683,1741757432132,-167.36,0.00016294,2]
[355977685,1741757432142,-157.55617147,0.00016303,2]
[355977692,1741757432191,-142.44382853,0.00016303,2]
[355977694,1741757432201,-12503.32620335,0.00016304,2]
[355977827,1741757437805,-12396.67379665,0.00016304,2]
[355977828,1741757437816,-177.145947,0.00016418,2]
[355977829,1741757437825,-168.360004,0.00016533,2]
[355977830,1741757437835,-167.36,0.0001679,2]
[355977831,1741757437845,-500.0,0.00016799,2]
[355977832,1741757437854,-500.0,0.00016799,2]
[355977833,1741757437864,-563.85422144,0.00016799,2]
[355977834,1741757437874,-4067.07258395,0.000168,8]
[355977835,1741757437883,-951.90972219,0.000169,2]
[355977836,1741757437894,-167.36,0.0001699,2]
[355977837,1741757437903,-1499.999999,0.00017,2]
[355977838,1741757437913,-293.78444898,0.00017321,2]
[355977839,1741757437922,-167.36,0.0001739,2]
[355977840,1741757437932,-167.36,0.0001739,2]
[355977841,1741757437942,-167.36,0.0001739,2]
[355977842,1741757437951,-167.36,0.0001739,2]
[355977843,1741757437961,-167.36,0.0001739,2]
[355977844,1741757437970,-210.0147,0.00017399,2]
[355977845,1741757437980,-206.05333203,0.00017399,2]
[355977846,1741757437998,-206.39043374,0.00017399,2]
[355977847,1741757438008,-2091.99590616,0.000174,8]
[355977848,1741757438020,-2818.6882401,0.000174,8]
[355977898,1741757440132,-9171.51837395,0.000174,8]
[355978232,1741757683917,200.0,0.00016021,2]
[355978233,1741757702479,200.0,0.00016021,2]